bitfinex/quotes_BTCUSD_20220306
["timestamp","ask_amount","ask_price","bid_price","bid_amount"]
[1646594998747,2.06515455,38906.0,38901.0,0.001]
[1646594998948,0.7842,38902.0,38901.0,0.001]
[1646594999145,1.77884693,38902.0,38901.0,0.001]
[1646594999348,1.87884693,38902.0,38901.0,0.001]
[1646595002048,1.87885388,38902.0,38901.0,0.001]
[1646595002696,1.49292488,38902.0,38901.0,0.001]
[1646595003598,1.49292409,38902.0,38901.0,0.001]
[1646595003800,0.41697966,38901.0,38900.0,0.02465001]
[1646595003999,1.54496308,38901.0,38900.0,0.02465001]
[1646595004600,1.54496308,38901.0,38900.0,0.02443254]
[1646595005401,1.33808115,38901.0,38900.0,0.02443254]
[1646595005703,0.42083594,38901.0,38900.0,0.02443254]
[1646595006346,0.21009773,38901.0,38900.0,0.02443254]
[1646595006740,0.42083594,38901.0,38900.0,0.02443254]
[1646595006944,0.21009773,38901.0,38900.0,0.02443254]
[1646595007940,0.21073821,38902.0,38900.0,0.02443254]
[1646595008141,0.21073821,38903.0,38900.0,0.02443254]
[1646595009141,0.17807349,38901.0,38900.0,0.02443254]
[1646595009999,0.40002538,38902.0,38900.0,0.02443254]
[1646595013110,0.40002538,38902.0,38901.0,0.0516]
[1646595013306,0.40002538,38902.0,38901.0,0.24885908]
[1646595013573,0.40002538,38902.0,38901.0,0.29186607]
[1646595013778,0.40002538,38902.0,38901.0,0.40392871]
[1646595013974,0.003,38906.0,38903.0,0.02572]
[1646595014173,0.0001,38906.0,38905.0,0.51598934]
[1646595014373,0.0001,38906.0,38905.0,0.63185934]
[1646595014574,0.0001,38906.0,38905.0,0.73185934]
[1646595014775,0.21073821,38915.0,38905.0,0.73185934]
[1646595014978,0.42673475,38916.0,38907.0,0.17572]
[1646595015177,0.42673475,38916.0,38915.0,0.0380084]
[1646595015576,0.21073821,38917.0,38915.0,0.0380084]
[1646595016779,0.21073821,38919.0,38915.0,0.0380084]
[1646595016977,0.21073821,38919.0,38914.0,0.064267]
[1646595017412,0.21073821,38919.0,38917.0,0.0380084]
[1646595017810,0.21059247,38919.0,38917.0,0.0380084]
[1646595018210,0.21059247,38919.0,38917.0,0.38235144]
[1646595018410,0.21059247,38922.0,38918.0,0.42166304]
[1646595018609,0.26324059,38925.0,38918.0,0.42166304]
[1646595018810,0.26324059,38925.0,38920.0,0.18930524]
[1646595019009,0.26324059,38925.0,38922.0,0.064251]
[1646595019209,0.36873987,38930.0,38922.0,0.1538594]
[1646595019210,0.26324059,38926.0,38922.0,0.1538594]
[1646595019410,0.26324059,38926.0,38925.0,0.0380084]
[1646595019612,0.26324059,38928.0,38925.0,0.07462943]
[1646595019810,0.31609161,38930.0,38927.0,0.08727343]
[1646595019811,0.26324059,38929.0,38927.0,0.08727343]
[1646595020011,0.0002029,38930.0,38928.0,0.00025697]
[1646595020217,0.0002029,38930.0,38929.0,0.13297008]
[1646595020412,0.47373908,38934.0,38929.0,0.13297008]
[1646595020613,0.21049849,38934.0,38932.0,0.02302943]
[1646595021255,0.16433553,38933.0,38932.0,0.02302943]
[1646595021456,0.21049849,38934.0,38932.0,0.02302943]
[1646595021754,0.2107014,38934.0,38932.0,0.02302943]
[1646595022456,0.17182874,38933.0,38932.0,0.02302943]
[1646595023659,0.42103103,38934.0,38932.0,0.02302943]
[1646595024060,0.42082796,38934.0,38932.0,0.02302943]
[1646595024662,0.18635907,38933.0,38932.0,0.02302943]
[1646595024898,0.42082796,38934.0,38932.0,0.02302943]
[1646595025501,0.21049849,38934.0,38932.0,0.02302943]
[1646595025801,0.19759349,38933.0,38932.0,0.02302943]
[1646595026299,0.21049849,38934.0,38932.0,0.02302943]
[1646595026699,0.21071045,38934.0,38932.0,0.02302943]
[1646595027600,0.21049849,38934.0,38932.0,0.02302943]
[1646595028401,0.17162195,38933.0,38926.0,0.0516]
[1646595028652,0.21071365,38928.0,38926.0,0.0516]
[1646595028851,0.21071365,38928.0,38927.0,0.13959117]
[1646595030056,0.21071365,38928.0,38927.0,0.02652423]
[1646595030454,0.21071365,38928.0,38927.0,0.0034948]
[1646595030952,0.21071365,38928.0,38924.0,0.02302943]
[1646595031554,0.99491365,38928.0,38918.0,0.1]
[1646595031754,0.99491365,38928.0,38920.0,0.02302943]
[1646595031955,0.35501385,38921.0,38920.0,0.02302943]
[1646595032402,0.35501385,38921.0,38909.0,0.55705204]
[1646595032603,1.13921385,38921.0,38916.0,0.02302943]
[1646595032799,1.13921385,38921.0,38909.0,0.064277]
[1646595033199,0.18174004,38915.0,38909.0,0.064277]
[1646595033403,0.18174004,38915.0,38914.0,0.02302943]
[1646595033601,0.18174004,38915.0,38914.0,0.02416055]
[1646595033800,0.98647905,38921.0,38914.0,0.0217445]
[1646595034002,0.98647905,38921.0,38909.0,0.064277]
[1646595034199,0.98647905,38921.0,38909.0,0.164277]
[1646595034401,0.98647905,38921.0,38918.0,0.02061338]
[1646595034901,0.15981544,38920.0,38918.0,0.02061338]
[1646595035100,0.15981544,38920.0,38919.0,0.00113112]
[1646595036143,0.15981544,38920.0,38919.0,0.0011308]
[1646595038345,0.15981544,38920.0,38911.0,0.228546]
[1646595038549,0.15981544,38920.0,38915.0,0.02148718]
[1646595038746,0.15981544,38920.0,38919.0,0.0008738]
[1646595039547,0.15981544,38920.0,38919.0,0.02148718]
[1646595039816,0.15981544,38920.0,38919.0,0.0008738]
[1646595041818,0.15981544,38920.0,38919.0,0.02148718]
[1646595044859,0.15981544,38920.0,38919.0,0.0008738]
[1646595045058,0.15981544,38920.0,38919.0,0.02148718]
[1646595045359,0.15981544,38920.0,38919.0,0.0008738]
[1646595046058,0.15981544,38920.0,38919.0,0.02148718]
[1646595046258,0.15981544,38920.0,38919.0,0.0008738]
[1646595046463,0.15981544,38920.0,38919.0,0.02148718]
[1646595046659,0.15981544,38920.0,38919.0,0.0008738]
[1646595052365,0.17514661,38924.0,38919.0,0.0008738]
[1646595052568,0.17514661,38924.0,38918.0,0.02061338]
[1646595053065,0.17514661,38924.0,38919.0,0.064262]
[1646595053468,0.1199,38926.0,38919.0,0.064262]
[1646595053667,0.1806,38928.0,38919.0,0.064262]
[1646595053865,0.21032947,38929.0,38919.0,0.064262]
[1646595054069,0.21032947,38929.0,38920.0,0.34277504]
[1646595054266,0.21032947,38929.0,38923.0,0.128506]
[1646595054467,0.68998567,38930.0,38923.0,0.128506]
[1646595054802,0.21053987,38930.0,38923.0,0.128506]
[1646595055005,0.21053987,38930.0,38924.0,0.34277504]
[1646595055006,0.0002104,38930.0,38924.0,0.34277504]
[1646595055201,0.21032947,38931.0,38923.0,0.064254]
[1646595055402,0.1202,38932.0,38926.0,0.064248]
[1646595055403,0.33052947,38932.0,38926.0,0.064248]
[1646595055704,0.00021041,38930.0,38927.0,0.064249]
[1646595055902,0.21053988,38930.0,38923.0,0.02061338]
[1646595056606,0.21053268,38930.0,38923.0,0.02061338]
[1646595056801,0.16556978,38929.0,38923.0,0.02061338]
[1646595057604,0.37589925,38929.0,38923.0,0.02061338]
[1646595058205,0.16203195,38925.0,38923.0,0.02061338]
[1646595058651,0.16203195,38925.0,38922.0,0.02061338]
[1646595058852,0.16203195,38925.0,38920.0,0.12852]
[1646595059256,0.16203195,38925.0,38920.0,0.49182923]
[1646595060053,0.16203195,38925.0,38920.0,0.42756923]
[1646595060254,0.16203195,38925.0,38920.0,0.36330923]
[1646595060653,0.16203195,38925.0,38920.0,0.02053419]
[1646595061256,0.16203195,38925.0,38916.0,0.34277504]
[1646595061456,0.16203195,38925.0,38917.0,0.02053419]
[1646595061457,0.94623195,38925.0,38917.0,0.02053419]
[1646595061658,0.21055045,38924.0,38917.0,0.02053419]
[1646595061860,0.7842,38923.0,38917.0,0.02053419]
[1646595062060,0.99475045,38923.0,38915.0,0.003]
[1646595062301,0.15473731,38917.0,38915.0,0.003]
[1646595062499,0.15473731,38917.0,38916.0,0.00025698]
[1646595063502,0.35267045,38922.0,38916.0,0.00025698]
[1646595063704,0.002,38921.0,38915.0,0.02053419]
[1646595063903,0.002,38921.0,38915.0,0.00252079]
[1646595064504,0.002,38921.0,38915.0,0.06678879]
[1646595064902,0.7842,38922.0,38916.0,0.064267]
[1646595065300,0.39630461,38923.0,38916.0,0.064267]
[1646595065702,0.80992,38922.0,38915.0,0.066268]
[1646595065903,0.37058461,38923.0,38917.0,0.064266]
[1646595066152,0.21055045,38923.0,38917.0,0.128526]
[1646595066347,0.21055045,38923.0,38917.0,0.06426]
[1646595066750,0.21055045,38923.0,38918.0,0.06425817]
[1646595066946,0.21055045,38924.0,38919.0,0.064259]
[1646595067347,0.21055045,38924.0,38919.0,0.128514]
[1646595067547,0.21055045,38924.0,38920.0,0.00252079]
[1646595067747,0.21055045,38924.0,38919.0,0.12603479]
[1646595067947,0.21055045,38928.0,38919.0,0.46727991]
[1646595068147,0.21055045,38928.0,38921.0,0.064249]
[1646595068347,0.21055045,38928.0,38922.0,0.40549394]
[1646595068547,0.17726855,38929.0,38922.0,0.40549394]
[1646595068548,0.21055045,38929.0,38922.0,0.40549394]
[1646595069447,0.21055045,38929.0,38924.0,0.06425]
[1646595069448,0.42222781,38929.0,38924.0,0.06425]
[1646595069650,0.21167736,38929.0,38924.0,0.06425]
[1646595069899,0.42222781,38929.0,38922.0,0.34124512]
[1646595070203,0.42222781,38929.0,38920.0,0.46974312]
[1646595070399,0.42222781,38929.0,38920.0,0.34124512]
[1646595070599,0.21055045,38928.0,38920.0,0.34124512]
[1646595070799,0.21055045,38928.0,38919.0,0.0516]
[1646595074353,0.21055045,38928.0,38919.0,0.115862]
[1646595074753,0.21055045,38928.0,38919.0,0.0516]
[1646595075353,0.20685045,38928.0,38919.0,0.115862]
[1646595076354,0.20685045,38928.0,38919.0,0.0516]
[1646595077801,1.28483795,38929.0,38919.0,0.0516]
[1646595077999,0.7842,38927.0,38916.0,0.1214]
[1646595078199,0.26324059,38927.0,38916.0,0.1214]
[1646595079402,1.04744059,38927.0,38916.0,0.1214]
[1646595079603,1.11171559,38927.0,38916.0,0.1214]
[1646595079800,0.17152086,38920.0,38916.0,0.1214]
[1646595080003,0.17152086,38920.0,38913.0,0.0516]
[1646595080807,0.17152086,38920.0,38913.0,0.115871]
[1646595081852,0.17152086,38920.0,38913.0,0.0516]
[1646595082053,0.26324059,38925.0,38913.0,0.0516]
[1646595082255,0.1203,38926.0,38914.0,0.34124512]
[1646595082755,0.1203,38926.0,38915.0,0.064267]
[1646595083354,0.38354059,38926.0,38915.0,0.064267]
[1646595083753,1.16774059,38926.0,38915.0,0.064267]
[1646595084054,1.16774059,38926.0,38914.0,0.128527]
[1646595084902,0.38354059,38926.0,38914.0,0.128527]
[1646595085101,0.1203,38926.0,38914.0,0.46977212]
[1646595085304,0.19003147,38921.0,38914.0,0.46977212]
[1646595085502,0.19003147,38921.0,38914.0,0.128527]
[1646595085905,0.19003147,38921.0,38914.0,0.46977212]
[1646595086104,0.19003147,38921.0,38914.0,0.1927907]
[1646595086304,0.19003147,38921.0,38916.0,0.064265]
[1646595086505,0.19003147,38921.0,38913.0,0.005]
[1646595087104,0.19003147,38921.0,38912.0,0.20935405]
[1646595088556,0.19003147,38921.0,38912.0,0.40215705]
[1646595088750,0.19003147,38921.0,38912.0,0.33788405]
[1646595089351,0.2106118,38923.0,38913.0,0.20935405]
[1646595089751,0.2106118,38924.0,38913.0,0.20935405]
[1646595090357,0.2106118,38924.0,38914.0,0.06426415]
[1646595090560,0.2106118,38924.0,38915.0,0.064268]
[1646595091154,0.18384857,38917.0,38915.0,0.064268]
[1646595091355,0.18384857,38917.0,38913.0,0.20935405]
[1646595091554,0.18384857,38917.0,38912.0,0.27362705]
[1646595091957,0.18384857,38917.0,38912.0,0.20935405]
[1646595092700,0.18384857,38917.0,38912.0,0.33789515]
[1646595093105,0.18384857,38917.0,38912.0,0.1285411]
[1646595093301,0.55185692,38921.0,38912.0,0.1285411]
[1646595093502,0.2106118,38921.0,38913.0,0.128528]
[1646595093901,0.2106118,38921.0,38913.0,0.07483221]
[1646595094101,0.55185692,38922.0,38913.0,0.07483221]
[1646595094504,0.17517529,38919.0,38915.0,0.064266]
[1646595094903,0.17517529,38919.0,38915.0,0.128529]
[1646595095106,0.17517529,38919.0,38915.0,0.064266]
[1646595095304,0.17517529,38919.0,38912.0,0.20935405]
[1646595095903,0.17517529,38919.0,38912.0,0.21435405]
[1646595096350,0.51419841,38919.0,38912.0,0.21435405]
[1646595097149,0.51419841,38919.0,38913.0,0.064271]
[1646595097752,0.51419841,38919.0,38912.0,0.20935405]
[1646595098755,0.51419841,38919.0,38910.0,0.005]
[1646595098756,0.27489811,38918.0,38910.0,0.005]
[1646595098957,0.2106118,38914.0,38910.0,0.005]
[1646595099155,0.54963492,38913.0,38905.0,0.20954211]
[1646595099356,0.54963492,38913.0,38905.0,0.00018806]
[1646595099556,0.2106118,38912.0,38905.0,0.00018806]
[1646595099801,0.33902312,38911.0,38903.0,0.27363905]
[1646595100003,0.33902312,38911.0,38905.0,0.00018846]
[1646595100202,0.54963492,38913.0,38905.0,0.00018846]
[1646595100406,0.33902312,38913.0,38905.0,0.06447246]
[1646595100602,0.33902312,38913.0,38906.0,0.064281]
[1646595101107,0.33902312,38913.0,38905.0,0.12874246]
[1646595101305,0.33902312,38913.0,38905.0,0.00018846]
[1646595102105,0.15464084,38907.0,38902.0,0.33395405]
[1646595102306,0.15464084,38907.0,38905.0,0.00018843]
[1646595103309,0.33902312,38906.0,38900.0,0.23378659]
[1646595103551,0.33902312,38906.0,38904.0,0.00018839]
[1646595103552,0.33895468,38906.0,38904.0,0.00018839]
[1646595104552,0.33895468,38906.0,38900.0,0.02743254]
[1646595104853,0.33895468,38906.0,38903.0,0.00018839]
[1646595105755,0.33895468,38906.0,38902.0,0.004]
[1646595105955,0.33895468,38906.0,38903.0,0.0001884]
[1646595106956,0.33895468,38906.0,38902.0,0.004]
[1646595107156,0.33895468,38906.0,38900.0,0.09172154]
[1646595107157,0.33895468,38906.0,38903.0,0.0001884]
[1646595107801,0.49366396,38907.0,38903.0,0.0001884]
[1646595108002,0.15464084,38907.0,38903.0,0.0001884]
[1646595108203,0.21186608,38908.0,38902.0,0.067289]
[1646595108402,0.21186608,38908.0,38903.0,0.0001884]
[1646595108907,0.36474312,38912.0,38903.0,0.0001884]
[1646595109303,0.33902312,38912.0,38902.0,0.131576]
[1646595109504,0.33902312,38912.0,38905.0,0.0001887]
[1646595109705,0.1218,38913.0,38905.0,0.0001887]
[1646595109905,0.1218,38913.0,38906.0,0.06428]
[1646595110106,0.39407433,38915.0,38906.0,0.06428]
[1646595110309,0.2307,38915.0,38908.0,0.16651218]
[1646595110609,0.15674102,38917.0,38911.0,0.06426469]
[1646595110806,0.1245,38918.0,38911.0,0.06426469]
[1646595111050,0.33902312,38920.0,38911.0,0.06426469]
[1646595111051,0.33902312,38920.0,38911.0,0.12852969]
[1646595111252,0.16248635,38917.0,38911.0,0.12852969]
[1646595111457,0.16248635,38917.0,38913.0,0.064265]
[1646595111851,0.18829961,38916.0,38913.0,0.064265]
[1646595112153,0.16248635,38917.0,38913.0,0.064265]
[1646595112951,0.16248635,38917.0,38912.0,0.12853]
[1646595113153,0.33610609,38917.0,38912.0,0.12853]
[1646595113353,0.16248635,38917.0,38912.0,0.12853]
[1646595115406,0.33902312,38920.0,38912.0,0.19279714]
[1646595115605,0.33902312,38920.0,38914.0,0.064268]
[1646595115807,0.2106118,38921.0,38914.0,0.064268]
[1646595116009,0.57535492,38922.0,38914.0,0.064268]
[1646595116209,0.33902312,38920.0,38914.0,0.064268]
[1646595116705,0.71117699,38922.0,38914.0,0.064268]
[1646595116907,0.81117699,38922.0,38914.0,0.064268]
[1646595117207,0.71117699,38922.0,38912.0,0.1928]
[1646595117406,0.71117699,38922.0,38914.0,0.064268]
[1646595117612,0.71117699,38922.0,38910.0,0.12853]
[1646595117613,0.50056519,38922.0,38910.0,0.12853]
[1646595117808,0.71117699,38922.0,38911.0,0.003]
[1646595118208,0.2106118,38921.0,38911.0,0.003]
[1646595118408,0.33902312,38920.0,38911.0,0.003]
[1646595119061,0.33902312,38920.0,38911.0,0.064272]
[1646595119956,0.19229571,38917.0,38910.0,0.003]
[1646595120157,0.33902312,38920.0,38910.0,0.003]
[1646595120556,1.12322312,38920.0,38910.0,0.003]
[1646595121157,1.12322312,38920.0,38907.0,0.115879]
[1646595121457,1.33383492,38920.0,38907.0,0.0516]
[1646595121856,0.2106118,38919.0,38907.0,0.0516]
[1646595122057,0.33902312,38918.0,38907.0,0.0516]
[1646595123097,0.15784024,38915.0,38907.0,0.0516]
[1646595123899,0.33902312,38918.0,38916.0,0.06345937]
[1646595124100,0.3389067,38918.0,38916.0,0.06345937]
[1646595124498,0.15380408,38917.0,38916.0,0.06345937]
[1646595124701,0.49271078,38917.0,38916.0,0.06345937]
[1646595126860,1.27691078,38917.0,38916.0,0.06345937]
[1646595128458,1.66280478,38917.0,38916.0,0.06345937]
[1646595128657,1.54015137,38917.0,38916.0,0.06345937]
[1646595129465,1.9257045,38917.0,38916.0,0.06345937]
[1646595129659,1.76246391,38917.0,38916.0,0.06345937]
[1646595129902,2.09119262,38917.0,38916.0,0.06345937]
[1646595130101,2.07835262,38917.0,38916.0,0.06345937]
[1646595131503,1.69245862,38917.0,38916.0,0.06345937]
[1646595131804,2.07835262,38917.0,38916.0,0.06345937]
[1646595133756,1.69245862,38917.0,38916.0,0.06345937]
[1646595133953,2.07835262,38917.0,38916.0,0.06345937]
[1646595134753,1.76246391,38917.0,38916.0,0.06345937]
[1646595134952,1.37656991,38917.0,38916.0,0.06345937]
[1646595135755,0.59236991,38917.0,38916.0,0.06345937]
[1646595135955,0.3389067,38917.0,38916.0,0.06345937]
[1646595136157,0.21060783,38917.0,38916.0,0.06345937]
[1646595136354,0.60217325,38919.0,38916.0,0.06345937]
[1646595136556,0.21063108,38917.0,38916.0,0.06345937]
[1646595136954,0.41256062,38917.0,38916.0,0.06345937]
[1646595137158,0.21063108,38917.0,38916.0,0.06345937]
[1646595137606,0.21063108,38918.0,38916.0,0.06345937]
[1646595138404,0.39069669,38918.0,38916.0,0.06345937]
[1646595138807,0.21063108,38918.0,38916.0,0.06345937]
[1646595139206,0.3389067,38917.0,38916.0,0.06345937]
[1646595140308,0.51696729,38917.0,38916.0,0.06345937]
[1646595140809,0.17806059,38917.0,38916.0,0.06345937]
[1646595141457,0.26326655,38918.0,38916.0,0.06345937]
[1646595142257,0.26326655,38917.0,38916.0,0.06345937]
[1646595142461,0.45538327,38917.0,38916.0,0.06345937]
[1646595143460,1.23958327,38917.0,38916.0,0.06345937]
[1646595143661,1.23458327,38917.0,38916.0,0.06345937]
[1646595143964,1.30600303,38917.0,38916.0,0.06345937]
[1646595144363,2.00778574,38917.0,38916.0,0.06345937]
[1646595144560,1.62189174,38917.0,38916.0,0.06345937]
[1646595145028,1.79189703,38917.0,38916.0,0.06345937]
[1646595145222,1.40600303,38917.0,38916.0,0.06345937]
[1646595146421,1.77453986,38917.0,38916.0,0.06345937]
[1646595148572,2.16043386,38917.0,38916.0,0.06345937]
[1646595149071,1.77453986,38917.0,38916.0,0.06345937]
[1646595149872,2.16043386,38917.0,38916.0,0.06345937]
[1646595150178,1.77453986,38917.0,38916.0,0.06345937]
[1646595150876,1.40600303,38917.0,38916.0,0.06345937]
[1646595151674,1.07631672,38917.0,38916.0,0.06345937]
[1646595152513,1.39237344,38917.0,38916.0,0.06345937]
[1646595153914,1.07631672,38917.0,38916.0,0.06345937]
[1646595154716,1.4061254,38917.0,38916.0,0.06345937]
[1646595155519,1.7920194,38917.0,38916.0,0.06345937]
[1646595155720,1.4061254,38917.0,38916.0,0.06345937]
[1646595155922,1.7920194,38917.0,38916.0,0.06345937]
[1646595156162,1.53007676,38917.0,38916.0,0.06345937]
[1646595156363,1.20026808,38917.0,38916.0,0.06345937]
[1646595157262,1.40280343,38917.0,38916.0,0.06345937]
[1646595157463,1.08673535,38917.0,38916.0,0.06345937]
[1646595159812,1.21412976,38917.0,38916.0,0.06345937]
[1646595160012,0.31607792,38917.0,38916.0,0.06345937]
[1646595160417,1.170094,38917.0,38916.0,0.06345937]
[1646595160615,0.7842,38917.0,38916.0,0.06345937]
[1646595161414,0.94286201,38917.0,38916.0,0.06345937]
[1646595161613,1.64483393,38917.0,38916.0,0.06345937]
[1646595161813,1.10027792,38917.0,38916.0,0.06345937]
[1646595162614,0.7842,38917.0,38916.0,0.06345937]
[1646595162814,1.10027792,38917.0,38916.0,0.06345937]
[1646595163214,1.48617192,38917.0,38916.0,0.06345937]
[1646595163415,0.31607792,38917.0,38916.0,0.06345937]
[1646595163853,0.31607792,38918.0,38916.0,0.06345937]
[1646595164152,0.41607792,38918.0,38916.0,0.06345937]
[1646595164553,1.40713655,38918.0,38916.0,0.06345937]
[1646595164955,0.70197192,38917.0,38916.0,0.06345937]
[1646595165154,1.10027792,38917.0,38916.0,0.06345937]
[1646595165754,1.48617192,38917.0,38916.0,0.06345937]
[1646595165954,0.31607792,38917.0,38916.0,0.06345937]
[1646595166554,0.385894,38917.0,38916.0,0.06345937]
[1646595166755,0.64930591,38917.0,38916.0,0.06345937]
[1646595167056,0.70197192,38918.0,38916.0,0.06345937]
[1646595167310,0.31607792,38919.0,38916.0,0.06345937]
[1646595167506,0.26341034,38917.0,38916.0,0.06345937]
[1646595167909,0.26341034,38917.0,38916.0,0.06336717]
[1646595171058,0.31607792,38918.0,38916.0,0.06336717]
[1646595172860,0.31607792,38919.0,38916.0,0.06336717]
[1646595173562,0.26341814,38917.0,38916.0,0.06336717]
[1646595173963,0.26341742,38917.0,38916.0,0.06336717]
[1646595174163,0.31607792,38918.0,38916.0,0.06336717]
[1646595174564,1.10027792,38918.0,38916.0,0.06336717]
[1646595175409,0.31607792,38918.0,38916.0,0.06336717]
[1646595176210,0.31607792,38919.0,38916.0,0.06336717]
[1646595176410,0.2634159,38917.0,38916.0,0.05336717]
[1646595176815,0.7842,38918.0,38916.0,0.05336717]
[1646595176816,1.0476159,38918.0,38916.0,0.05336717]
[1646595177010,1.0476159,38917.0,38916.0,0.05336717]
[1646595177411,1.0476197,38917.0,38916.0,0.05336717]
[1646595177611,1.170094,38917.0,38916.0,0.05336717]
[1646595177811,0.7842,38917.0,38916.0,0.05336717]
[1646595178111,1.170094,38917.0,38916.0,0.05336717]
[1646595178557,3.07577476,38917.0,38916.0,0.05336717]
[1646595178859,0.7842,38917.0,38916.0,0.05336717]
[1646595179056,1.170094,38917.0,38916.0,0.05336717]
[1646595180055,0.31607792,38918.0,38916.0,0.05336717]
[1646595180255,1.10427792,38919.0,38916.0,0.05336717]
[1646595180455,0.70197192,38918.0,38916.0,0.05336717]
[1646595180657,0.31607792,38918.0,38916.0,0.05336717]
[1646595180957,0.18396729,38917.0,38916.0,0.05336717]
[1646595181162,0.44739597,38917.0,38916.0,0.05336717]
[1646595181759,0.88593921,38917.0,38916.0,0.05336717]
[1646595181958,0.50004521,38917.0,38916.0,0.05336717]
[1646595182410,0.88593921,38917.0,38916.0,0.05336717]
[1646595182811,0.70197192,38917.0,38916.0,0.05336717]
[1646595183415,1.48617192,38917.0,38916.0,0.05336717]
[1646595183614,1.170094,38917.0,38916.0,0.05336717]
[1646595183818,1.48617192,38917.0,38916.0,0.05336717]
[1646595184413,1.67394475,38917.0,38916.0,0.05336717]
[1646595184813,1.48617192,38917.0,38916.0,0.05336717]
[1646595185015,0.70197192,38917.0,38916.0,0.05336717]
[1646595185814,1.6505717,38917.0,38916.0,0.05336717]
[1646595186656,0.8663717,38917.0,38916.0,0.05336717]
[1646595186855,0.69697192,38917.0,38916.0,0.05336717]
[1646595187955,0.88293765,38917.0,38916.0,0.05336717]
[1646595188454,0.69697192,38917.0,38916.0,0.05336717]
[1646595188655,0.380894,38917.0,38916.0,0.05336717]
[1646595191909,0.69697192,38917.0,38916.0,0.05336717]
[1646595192111,1.48117192,38917.0,38916.0,0.05336717]
[1646595192712,0.380894,38917.0,38916.0,0.05336717]
[1646595194160,0.31607792,38918.0,38916.0,0.05336717]
[1646595194365,0.26345979,38918.0,38916.0,0.05336717]
[1646595194561,0.004,38921.0,38916.0,0.05336717]
[1646595194562,0.21074423,38917.0,38916.0,0.05336717]
[1646595195261,0.21074423,38917.0,38916.0,0.39071203]
[1646595195464,0.31609893,38923.0,38916.0,0.39071203]
[1646595195760,0.21073262,38919.0,38916.0,0.44231203]
[1646595196660,0.21073262,38919.0,38917.0,0.064264]
[1646595196865,0.21073262,38920.0,38918.0,0.33734486]
[1646595197712,0.21073262,38921.0,38918.0,0.33734486]
[1646595199611,0.21073262,38921.0,38918.0,0.4954402]
[1646595200014,0.21069204,38922.0,38920.0,0.064258]
[1646595200213,0.21069204,38921.0,38920.0,0.064258]
[1646595200413,0.26336505,38924.0,38920.0,0.064258]
[1646595200414,0.21069204,38922.0,38920.0,0.064258]
[1646595200617,0.21069204,38922.0,38921.0,0.33734486]
[1646595200816,0.21069204,38923.0,38921.0,0.33734486]
[1646595201366,0.21069204,38923.0,38920.0,0.12851]
[1646595201564,0.21069204,38923.0,38920.0,0.19276498]
[1646595201768,0.21069204,38925.0,38920.0,0.19276498]
[1646595201969,0.21069204,38925.0,38921.0,0.33734486]
[1646595202367,0.21069204,38925.0,38920.0,0.064258]
[1646595205308,0.21069204,38926.0,38920.0,0.064258]
[1646595206810,0.21069204,38927.0,38920.0,0.064258]
[1646595207210,0.21069204,38926.0,38920.0,0.064258]
[1646595207810,0.21069204,38926.0,38920.0,0.06414707]
[1646595208213,0.21069204,38926.0,38919.0,0.002]
[1646595208662,0.21069204,38925.0,38919.0,0.002]
[1646595209064,0.21196483,38920.0,38919.0,0.002]
[1646595209366,0.21196483,38920.0,38909.0,0.2093771]
[1646595209966,0.42265687,38920.0,38910.0,0.33734486]
[1646595210263,0.21196483,38920.0,38911.0,0.20537124]
[1646595210463,0.21196483,38920.0,38910.0,0.33734486]
[1646595211065,0.21196483,38920.0,38910.0,0.40161886]
[1646595211367,0.21196483,38920.0,38910.0,0.58925617]
[1646595211566,0.21196483,38920.0,38910.0,0.40161886]
[1646595211766,0.21196483,38920.0,38910.0,0.33734486]
[1646595211968,0.21196483,38920.0,38909.0,0.064277]
[1646595212169,0.21196483,38920.0,38909.0,0.40162186]
[1646595212615,0.21196483,38920.0,38910.0,0.16551742]
[1646595213709,0.21196483,38920.0,38909.0,0.40162186]
[1646595213910,0.21196483,38920.0,38909.0,0.61099896]
[1646595214111,0.75815427,38921.0,38909.0,0.61099896]
[1646595214310,0.06646361,38919.0,38909.0,0.61099896]
[1646595214612,0.1708951,38917.0,38907.0,0.2153771]
[1646595214813,0.19158635,38914.0,38909.0,0.17202744]
[1646595215610,0.27715565,38919.0,38909.0,0.17202744]
[1646595215810,0.21069204,38919.0,38909.0,0.17202744]
[1646595216463,0.21069204,38920.0,38909.0,0.17202744]
[1646595216663,0.18931375,38917.0,38909.0,0.17202744]
[1646595216863,0.18931375,38917.0,38910.0,0.064274]
[1646595217468,0.18931375,38917.0,38909.0,0.17202744]
[1646595222111,0.21069204,38919.0,38909.0,0.17202744]
[1646595222313,0.21069204,38919.0,38910.0,0.3384535]
[1646595222912,0.21069204,38919.0,38909.0,0.17202744]
[1646595224261,0.19834038,38917.0,38909.0,0.17202744]
[1646595225661,0.19834038,38917.0,38910.0,0.064276]
[1646595226263,0.19834038,38917.0,38911.0,0.064274]
[1646595226463,0.21069204,38919.0,38911.0,0.064274]
[1646595226666,0.54914554,38920.0,38911.0,0.064274]
[1646595226963,0.54914554,38920.0,38912.0,0.064273]
[1646595226964,0.3384535,38920.0,38912.0,0.064273]
[1646595227164,0.21069204,38921.0,38912.0,0.064273]
[1646595227611,0.16772935,38920.0,38912.0,0.064273]
[1646595228213,0.50618285,38920.0,38912.0,0.064273]
[1646595228412,0.50618285,38920.0,38913.0,0.064267]
[1646595228812,0.50618285,38920.0,38914.0,0.18876368]
[1646595229015,0.50618285,38920.0,38912.0,0.064273]
[1646595230319,0.71687489,38920.0,38912.0,0.128545]
[1646595230518,0.37842139,38920.0,38912.0,0.128545]
[1646595231558,0.21069204,38920.0,38912.0,0.128545]
[1646595232558,0.40182323,38920.0,38914.0,0.1555428]
[1646595232760,0.21069204,38920.0,38914.0,0.1555428]
[1646595233658,0.40858434,38920.0,38914.0,0.1555428]
[1646595234559,0.40858434,38920.0,38912.0,0.064273]
[1646595234807,0.40846527,38920.0,38912.0,0.064273]
[1646595236011,0.40846527,38920.0,38912.0,0.128545]
[1646595236412,0.1978923,38920.0,38912.0,0.064273]
[1646595236809,0.1978923,38920.0,38910.0,0.192812]
[1646595237210,0.1978923,38920.0,38909.0,0.3384535]
[1646595237410,0.45029366,38921.0,38911.0,0.15]
[1646595237711,0.18692861,38921.0,38911.0,0.15]
[1646595237910,0.18692861,38921.0,38911.0,0.4884535]
[1646595238567,0.18692861,38921.0,38914.0,0.06427]
[1646595238767,0.20110293,38919.0,38914.0,0.26285188]
[1646595239567,0.18692861,38921.0,38914.0,0.26285188]
[1646595240371,0.18692861,38921.0,38914.0,0.06427]
[1646595241571,0.37796589,38921.0,38914.0,0.06427]
[1646595242907,0.37796589,38921.0,38914.0,0.26930973]
[1646595244108,0.37796589,38921.0,38913.0,0.064268]
[1646595244807,0.58865254,38921.0,38913.0,0.064268]
[1646595245207,0.39761526,38921.0,38913.0,0.064268]